[Event "*** Titled Tuesday Blitz"]
[Site "Chess.com"]
[Date "2020.05.26"]
[Round "2"]
[White "StockholmMissile"]
[Black "CzechmVIII"]
[Result "1/2-1/2"]
[WhiteElo "2406"]
[BlackElo "2177"]
[TimeControl "180+1"]
[EndTime "10:19:22 PDT"]
[Termination "Game drawn by repetition"]

1. d4 {[%clk 0:03:00.9]} 1... Nf6 {[%clk 0:02:57.5]} 2. c4 {[%clk 0:03:00.3]}
2... c5 {[%clk 0:02:57.7]} 3. d5 {[%clk 0:02:59.4]} 3... e6 {[%clk 0:02:58]} 4.
Nc3 {[%clk 0:02:58.9]} 4... exd5 {[%clk 0:02:58.3]} 5. cxd5 {[%clk 0:02:59]}
5... d6 {[%clk 0:02:59]} 6. e4 {[%clk 0:02:58.8]} 6... g6 {[%clk 0:02:59.2]} 7.
Bd3 {[%clk 0:02:58.5]} 7... Bg7 {[%clk 0:02:58.6]} 8. h3 {[%clk 0:02:58.6]} 8...
O-O {[%clk 0:02:57.4]} 9. Nf3 {[%clk 0:02:59.1]} 9... b5 {[%clk 0:02:57.6]} 10.
Nxb5 {[%clk 0:02:58]} 10... Re8 {[%clk 0:02:57.5]} 11. O-O {[%clk 0:02:56.9]}
11... Nxe4 {[%clk 0:02:57.5]} 12. Re1 {[%clk 0:02:56.3]} 12... a6 {[%clk
0:02:57.5]} 13. Rxe4 {[%clk 0:02:56.3]} 13... Rxe4 {[%clk 0:02:49.1]} 14. Nxd6
{[%clk 0:02:54.9]} 14... Rb4 {[%clk 0:02:46.7]} 15. a3 {[%clk 0:02:54.8]} 15...
Qxd6 {[%clk 0:02:41.4]} 16. axb4 {[%clk 0:02:53]} 16... cxb4 {[%clk 0:02:41.4]}
17. Nd2 {[%clk 0:02:52.3]} 17... Bb7 {[%clk 0:02:17.1]} 18. Ra5 {[%clk 0:02:52]}
18... Nd7 {[%clk 0:02:02.5]} 19. Nc4 {[%clk 0:02:49.6]} 19... Qf6 {[%clk
0:01:53.8]} 20. b3 {[%clk 0:02:23]} 20... Re8 {[%clk 0:01:35.7]} 21. Bb2 {[%clk
0:02:20]} 21... Qg5 {[%clk 0:01:35.8]} 22. Bxg7 {[%clk 0:02:17.9]} 22... Kxg7
{[%clk 0:01:36.7]} 23. Bf1 {[%clk 0:02:05.7]} 23... Qf6 {[%clk 0:01:26.3]} 24.
Ne3 {[%clk 0:02:01]} 24... Qc3 {[%clk 0:01:15.1]} 25. Bc4 {[%clk 0:01:58]} 25...
Ne5 {[%clk 0:00:57.5]} 26. Ra1 {[%clk 0:01:46]} 26... Nxc4 {[%clk 0:00:46]} 27.
Nxc4 {[%clk 0:01:44.5]} 27... Rd8 {[%clk 0:00:42.9]} 28. d6 {[%clk 0:01:41]}
28... Qf6 {[%clk 0:00:31]} 29. Rc1 {[%clk 0:01:35.8]} 29... Bc6 {[%clk
0:00:22.9]} 30. Qd2 {[%clk 0:01:29.3]} 30... Bb5 {[%clk 0:00:22.5]} 31. Rd1
{[%clk 0:01:20.1]} 31... Bxc4 {[%clk 0:00:21]} 32. bxc4 {[%clk 0:01:21]} 32...
a5 {[%clk 0:00:20.9]} 33. c5 {[%clk 0:01:21.1]} 33... Qc3 {[%clk 0:00:20.9]} 34.
Qxc3+ {[%clk 0:01:18.3]} 34... bxc3 {[%clk 0:00:21.1]} 35. Rc1 {[%clk
0:01:18.1]} 35... Kf6 {[%clk 0:00:19.4]} 36. Rxc3 {[%clk 0:01:16]} 36... Ke6
{[%clk 0:00:19.9]} 37. Ra3 {[%clk 0:01:11.5]} 37... Ra8 {[%clk 0:00:18.6]} 38.
Re3+ {[%clk 0:01:07.9]} 38... Kd5 {[%clk 0:00:18.1]} 39. Rc3 {[%clk 0:00:56.1]}
39... Kc6 {[%clk 0:00:18.1]} 40. Rd3 {[%clk 0:00:50]} 40... a4 {[%clk
0:00:16.9]} 41. d7 {[%clk 0:00:49.7]} 41... Rd8 {[%clk 0:00:17.1]} 42. Ra3
{[%clk 0:00:47.7]} 42... Rxd7 {[%clk 0:00:16.3]} 43. Rxa4 {[%clk 0:00:48.1]}
43... Kxc5 {[%clk 0:00:16.7]} 44. Re4 {[%clk 0:00:48]} 44... Kd5 {[%clk
0:00:15.3]} 45. Re1 {[%clk 0:00:47.1]} 45... Kc6 {[%clk 0:00:14.9]} 46. Kh2
{[%clk 0:00:46.7]} 46... Rd6 {[%clk 0:00:12.1]} 47. Re7 {[%clk 0:00:45.1]} 47...
Rf6 {[%clk 0:00:12.2]} 48. Kg3 {[%clk 0:00:43.9]} 48... Kd6 {[%clk 0:00:12.4]}
49. Re8 {[%clk 0:00:42.7]} 49... h5 {[%clk 0:00:12.5]} 50. f4 {[%clk 0:00:41]}
50... Kd7 {[%clk 0:00:12.5]} 51. Re1 {[%clk 0:00:38]} 51... Kd6 {[%clk
0:00:12.4]} 52. Kf3 {[%clk 0:00:37.3]} 52... Kd7 {[%clk 0:00:12.3]} 53. g4
{[%clk 0:00:30.3]} 53... hxg4+ {[%clk 0:00:12.1]} 54. hxg4 {[%clk 0:00:30.9]}
54... Ra6 {[%clk 0:00:12.4]} 55. g5 {[%clk 0:00:27.5]} 55... Ra3+ {[%clk
0:00:11.6]} 56. Kg4 {[%clk 0:00:27.8]} 56... Ra4 {[%clk 0:00:11.1]} 57. Re5
{[%clk 0:00:27.5]} 57... Rb4 {[%clk 0:00:10.6]} 58. Re3 {[%clk 0:00:27.3]} 58...
Ra4 {[%clk 0:00:10.4]} 59. Kf3 {[%clk 0:00:27.6]} 59... Rb4 {[%clk 0:00:10.6]}
60. Ra3 {[%clk 0:00:27.4]} 60... Rc4 {[%clk 0:00:10.7]} 61. Ra7+ {[%clk
0:00:26.8]} 61... Ke6 {[%clk 0:00:10.6]} 62. Ra6+ {[%clk 0:00:26.7]} 62... Ke7
{[%clk 0:00:10.8]} 63. Ke3 {[%clk 0:00:25.1]} 63... Rb4 {[%clk 0:00:10.7]} 64.
Rf6 {[%clk 0:00:24.4]} 64... Rc4 {[%clk 0:00:10.3]} 65. f5 {[%clk 0:00:19.4]}
65... gxf5 {[%clk 0:00:09.9]} 66. Rxf5 {[%clk 0:00:20.3]} 66... Rc6 {[%clk
0:00:10.1]} 67. Kf4 {[%clk 0:00:19.6]} 67... Re6 {[%clk 0:00:09.9]} 68. Kg4
{[%clk 0:00:19.8]} 68... Ra6 {[%clk 0:00:09.5]} 69. Kh5 {[%clk 0:00:20]} 69...
Kf8 {[%clk 0:00:09.7]} 70. Rb5 {[%clk 0:00:18.4]} 70... Kg7 {[%clk 0:00:09.7]}
71. Rb7 {[%clk 0:00:18.6]} 71... Rg6 {[%clk 0:00:09.6]} 72. Re7 {[%clk
0:00:16.3]} 72... Re6 {[%clk 0:00:08.3]} 73. Rb7 {[%clk 0:00:14.5]} 73... Rg6
{[%clk 0:00:08.5]} 74. Kg4 {[%clk 0:00:13.3]} 74... Re6 {[%clk 0:00:08.7]} 75.
Kf5 {[%clk 0:00:13.5]} 75... Rg6 {[%clk 0:00:08.9]} 76. Rc7 {[%clk 0:00:13.3]}
76... Re6 {[%clk 0:00:08.9]} 77. Rd7 {[%clk 0:00:13.3]} 77... Rg6 {[%clk
0:00:08.9]} 78. Re7 {[%clk 0:00:13.5]} 78... Ra6 {[%clk 0:00:09.3]} 79. Rd7
{[%clk 0:00:13.5]} 79... Re6 {[%clk 0:00:09.5]} 80. Rc7 {[%clk 0:00:13]} 80...
Ra6 {[%clk 0:00:09.6]} 81. Rb7 {[%clk 0:00:13]} 81... Ra5+ {[%clk 0:00:09.7]}
82. Kg4 {[%clk 0:00:12.7]} 82... Ra6 {[%clk 0:00:10.2]} 83. Kh5 {[%clk
0:00:12.7]} 83... Rg6 {[%clk 0:00:10.3]} 1/2-1/2

[Event "*** Titled Tuesday Blitz"]
[Site "Chess.com"]
[Date "2020.05.26"]
[Round "2"]
[White "Azeryahu"]
[Black "AwareIdea"]
[Result "1-0"]
[WhiteElo "2766"]
[BlackElo "2504"]
[TimeControl "180+1"]
[EndTime "10:19:26 PDT"]
[Termination "Azeryahu won by resignation"]

1. Nf3 {[%clk 0:03:00.9]} 1... d5 {[%clk 0:03:00]} 2. g3 {[%clk 0:03:01]} 2...
Nf6 {[%clk 0:03:00.3]} 3. Bg2 {[%clk 0:03:01.2]} 3... Bg4 {[%clk 0:03:00.8]} 4.
O-O {[%clk 0:02:58.6]} 4... Nbd7 {[%clk 0:03:00.8]} 5. d4 {[%clk 0:02:58.1]}
5... Bxf3 {[%clk 0:02:59.8]} 6. Bxf3 {[%clk 0:02:57.5]} 6... e5 {[%clk
0:03:00.1]} 7. Bg2 {[%clk 0:02:35.3]} 7... exd4 {[%clk 0:02:54.7]} 8. Qxd4
{[%clk 0:02:32.8]} 8... Bc5 {[%clk 0:02:54.4]} 9. Qd1 {[%clk 0:02:13.1]} 9... c6
{[%clk 0:02:49.4]} 10. c4 {[%clk 0:01:51.7]} 10... dxc4 {[%clk 0:02:43.6]} 11.
Qc2 {[%clk 0:01:49.3]} 11... Nb6 {[%clk 0:02:31.2]} 12. Nd2 {[%clk 0:01:42.1]}
12... O-O {[%clk 0:02:23.7]} 13. Nxc4 {[%clk 0:01:41.2]} 13... Nxc4 {[%clk
0:02:18.3]} 14. Qxc4 {[%clk 0:01:42.1]} 14... Qe7 {[%clk 0:02:18.1]} 15. b3
{[%clk 0:01:22.4]} 15... Ba3 {[%clk 0:01:49.8]} 16. Bd2 {[%clk 0:01:17.6]} 16...
Bb2 {[%clk 0:01:44.1]} 17. Rad1 {[%clk 0:01:15.6]} 17... Rfd8 {[%clk 0:01:29.3]}
18. Ba5 {[%clk 0:01:15]} 18... Rxd1 {[%clk 0:00:55.5]} 19. Rxd1 {[%clk
0:01:15.9]} 19... Be5 {[%clk 0:00:51.1]} 20. Bb4 {[%clk 0:01:07.8]} 20... Qe6
{[%clk 0:00:46.1]} 21. Qxe6 {[%clk 0:01:07.3]} 21... fxe6 {[%clk 0:00:47]} 22.
e4 {[%clk 0:01:01.7]} 22... Kf7 {[%clk 0:00:45.3]} 23. f4 {[%clk 0:00:58.1]}
23... Bc7 {[%clk 0:00:45.2]} 24. Kf1 {[%clk 0:00:57.8]} 24... Rd8 {[%clk
0:00:44.3]} 25. Rxd8 {[%clk 0:00:58.2]} 25... Bxd8 {[%clk 0:00:45.2]} 26. Ke2
{[%clk 0:00:56.8]} 26... Be7 {[%clk 0:00:45.3]} 27. Bc3 {[%clk 0:00:55.2]} 27...
Bc5 {[%clk 0:00:44.6]} 28. Bf3 {[%clk 0:00:53.3]} 28... h6 {[%clk 0:00:43.7]}
29. h4 {[%clk 0:00:50.3]} 29... a6 {[%clk 0:00:42.7]} 30. g4 {[%clk 0:00:44]}
30... Ne8 {[%clk 0:00:38.1]} 31. g5 {[%clk 0:00:40.2]} 31... hxg5 {[%clk
0:00:35.4]} 32. hxg5 {[%clk 0:00:41.1]} 32... g6 {[%clk 0:00:34.2]} 33. Bg2
{[%clk 0:00:27.6]} 33... Nc7 {[%clk 0:00:33.8]} 34. a4 {[%clk 0:00:27.2]} 34...
Bf8 {[%clk 0:00:32]} 35. Kf3 {[%clk 0:00:23.7]} 35... Bg7 {[%clk 0:00:30.7]} 36.
Ba5 {[%clk 0:00:24.1]} 36... Ne8 {[%clk 0:00:29.1]} 37. Bf1 {[%clk 0:00:24.6]}
37... Bd4 {[%clk 0:00:25.9]} 38. Bc4 {[%clk 0:00:22.2]} 38... Nd6 {[%clk
0:00:25.8]} 39. Bd3 {[%clk 0:00:22.4]} 39... b5 {[%clk 0:00:23.5]} 40. Bc7
{[%clk 0:00:20.3]} 40... Ne8 {[%clk 0:00:22.3]} 41. Bb8 {[%clk 0:00:18.4]} 41...
Bb6 {[%clk 0:00:20.1]} 42. f5 {[%clk 0:00:09.2]} 42... exf5 {[%clk 0:00:16.1]}
43. exf5 {[%clk 0:00:10.1]} 43... gxf5 {[%clk 0:00:17]} 44. Bxf5 {[%clk
0:00:10.8]} 44... Bc7 {[%clk 0:00:15.1]} 45. Ba7 {[%clk 0:00:09.7]} 45... bxa4
{[%clk 0:00:14.8]} 46. bxa4 {[%clk 0:00:09.3]} 46... Ke7 {[%clk 0:00:12.7]} 47.
Be4 {[%clk 0:00:05.5]} 47... Kd6 {[%clk 0:00:10.5]} 48. Be3 {[%clk 0:00:03.2]}
48... Kd7 {[%clk 0:00:07.6]} 49. Bf5+ {[%clk 0:00:02.9]} 49... Ke7 {[%clk
0:00:07.2]} 50. Be4 {[%clk 0:00:03.5]} 50... Kd7 {[%clk 0:00:07]} 51. Kg4 {[%clk
0:00:03.5]} 51... Ng7 {[%clk 0:00:06.6]} 52. Bd3 {[%clk 0:00:03.8]} 52... Be5
{[%clk 0:00:05.1]} 53. Bxa6 {[%clk 0:00:03.1]} 53... Kd6 {[%clk 0:00:05]} 54.
Bd3 {[%clk 0:00:03.1]} 54... c5 {[%clk 0:00:05.1]} 55. g6 {[%clk 0:00:02.1]}
55... Kc6 {[%clk 0:00:05.3]} 56. Bd2 {[%clk 0:00:02.3]} 56... Kd5 {[%clk
0:00:05.6]} 57. a5 {[%clk 0:00:02.3]} 57... c4 {[%clk 0:00:06.1]} 58. Be2 {[%clk
0:00:02.9]} 58... Bd4 {[%clk 0:00:06.4]} 59. Bc1 {[%clk 0:00:03.1]} 59... c3
{[%clk 0:00:06.7]} 60. Bd3 {[%clk 0:00:02.9]} 60... Kc5 {[%clk 0:00:06.5]} 61.
a6 {[%clk 0:00:03]} 61... Kc6 {[%clk 0:00:07]} 62. Kf3 {[%clk 0:00:02.7]} 62...
Kb6 {[%clk 0:00:07.4]} 63. Ke4 {[%clk 0:00:03.1]} 63... Bf6 {[%clk 0:00:07.6]}
64. Kf3 {[%clk 0:00:02.6]} 64... Ka7 {[%clk 0:00:07]} 65. Ke2 {[%clk 0:00:03.1]}
65... Kb6 {[%clk 0:00:07.3]} 66. Be3+ {[%clk 0:00:03.6]} 66... Kc7 {[%clk
0:00:06.2]} 67. a7 {[%clk 0:00:04]} 67... c2 {[%clk 0:00:03]} 68. a8=Q {[%clk
0:00:03.5]} 68... c1=Q {[%clk 0:00:02.6]} 69. Bxc1 {[%clk 0:00:04]} 1-0

[Event "*** Titled Tuesday Blitz"]
[Site "Chess.com"]
[Date "2020.05.26"]
[Round "2"]
[White "Barmen_EV"]
[Black "platy3"]
[Result "0-1"]
[WhiteElo "2465"]
[BlackElo "2704"]
[TimeControl "180+1"]
[EndTime "10:19:26 PDT"]
[Termination "platy3 won on time"]

1. d4 {[%clk 0:02:48.7]} 1... Nf6 {[%clk 0:02:59.5]} 2. c4 {[%clk 0:02:48.8]}
2... e6 {[%clk 0:02:59.4]} 3. Nc3 {[%clk 0:02:48.9]} 3... Bb4 {[%clk 0:02:58.9]}
4. e3 {[%clk 0:02:49.2]} 4... O-O {[%clk 0:02:58.5]} 5. Bd3 {[%clk 0:02:49.5]}
5... d5 {[%clk 0:02:57.1]} 6. Nf3 {[%clk 0:02:49.8]} 6... c5 {[%clk 0:02:56.9]}
7. cxd5 {[%clk 0:02:49]} 7... exd5 {[%clk 0:02:55.5]} 8. dxc5 {[%clk 0:02:48.8]}
8... Nc6 {[%clk 0:02:54.5]} 9. O-O {[%clk 0:02:45.9]} 9... Bxc3 {[%clk 0:02:54]}
10. bxc3 {[%clk 0:02:45.2]} 10... Qa5 {[%clk 0:02:54.9]} 11. h3 {[%clk 0:02:43]}
11... Qxc5 {[%clk 0:02:50.5]} 12. a4 {[%clk 0:02:40.5]} 12... Re8 {[%clk
0:02:47.4]} 13. Bb2 {[%clk 0:02:35.7]} 13... Ne4 {[%clk 0:02:44.7]} 14. Rc1
{[%clk 0:02:29.9]} 14... Na5 {[%clk 0:02:41.4]} 15. Nd2 {[%clk 0:01:54.2]} 15...
Nxd2 {[%clk 0:02:34]} 16. Qxd2 {[%clk 0:01:55.1]} 16... Nb3 {[%clk 0:02:32.9]}
17. Bxh7+ {[%clk 0:01:55.3]} 17... Kh8 {[%clk 0:02:31.5]} 18. Qe2 {[%clk
0:01:54]} 18... g6 {[%clk 0:02:04.9]} 19. c4+ {[%clk 0:01:51.9]} 19... Kxh7
{[%clk 0:02:01.8]} 20. Rc3 {[%clk 0:01:38.1]} 20... Nd4 {[%clk 0:01:44.4]} 21.
exd4 {[%clk 0:01:37.3]} 21... Rxe2 {[%clk 0:01:42.7]} 22. dxc5 {[%clk
0:01:37.7]} 22... Rxb2 {[%clk 0:01:42.8]} 23. cxd5 {[%clk 0:01:38.6]} 23... Bd7
{[%clk 0:01:40.1]} 24. c6 {[%clk 0:01:37.6]} 24... bxc6 {[%clk 0:01:39.9]} 25.
dxc6 {[%clk 0:01:38.5]} 25... Be6 {[%clk 0:01:40.4]} 26. c7 {[%clk 0:01:38.4]}
26... Rc8 {[%clk 0:01:40.4]} 27. Rfc1 {[%clk 0:01:39.1]} 27... Rb3 {[%clk
0:01:37.9]} 28. Rc5 {[%clk 0:01:29.1]} 28... Kg7 {[%clk 0:01:34.2]} 29. a5
{[%clk 0:01:30]} 29... Kf8 {[%clk 0:01:32.6]} 30. Kh2 {[%clk 0:01:29]} 30... Ke7
{[%clk 0:01:32.5]} 31. f4 {[%clk 0:01:29]} 31... Rd3 {[%clk 0:01:26.6]} 32. g4
{[%clk 0:01:28]} 32... Rd5 {[%clk 0:01:20.6]} 33. Rc6 {[%clk 0:01:23.7]} 33...
Rxa5 {[%clk 0:01:19.1]} 34. Re1 {[%clk 0:01:23.5]} 34... Kd7 {[%clk 0:01:17.3]}
35. Rec1 {[%clk 0:01:12.1]} 35... Ra2+ {[%clk 0:01:10.6]} 36. Kg3 {[%clk
0:01:11.8]} 36... Ra3+ {[%clk 0:01:09.9]} 37. Kh4 {[%clk 0:01:11.9]} 37... a5
{[%clk 0:01:05.7]} 38. Kg5 {[%clk 0:01:12.8]} 38... Ke7 {[%clk 0:01:02.5]} 39.
f5 {[%clk 0:01:12.3]} 39... gxf5 {[%clk 0:00:55.3]} 40. gxf5 {[%clk 0:01:13.2]}
40... f6+ {[%clk 0:00:28.9]} 41. Kf4 {[%clk 0:00:56.4]} 41... Ra4+ {[%clk
0:00:28.7]} 42. Ke3 {[%clk 0:00:55.8]} 42... Bxf5 {[%clk 0:00:28.9]} 43. h4
{[%clk 0:00:55.6]} 43... Re4+ {[%clk 0:00:27]} 44. Kf3 {[%clk 0:00:54.3]} 44...
Rxh4 {[%clk 0:00:27.5]} 45. R6c5 {[%clk 0:00:55.2]} 45... Be6 {[%clk 0:00:24.2]}
46. Rxa5 {[%clk 0:00:53.2]} 46... Rc4 {[%clk 0:00:24.3]} 47. Rxc4 {[%clk
0:00:50.3]} 47... Bxc4 {[%clk 0:00:25.2]} 48. Rc5 {[%clk 0:00:51.2]} 48... Be6
{[%clk 0:00:25.1]} 49. Ke4 {[%clk 0:00:52.1]} 49... Kd6 {[%clk 0:00:25.1]} 50.
Rh5 {[%clk 0:00:48.7]} 50... Rxc7 {[%clk 0:00:24.7]} 51. Rh6 {[%clk 0:00:49.6]}
51... Rc4+ {[%clk 0:00:23.6]} 52. Kd3 {[%clk 0:00:50.5]} 52... Ke5 {[%clk
0:00:23.8]} 53. Rh5+ {[%clk 0:00:48.8]} 53... f5 {[%clk 0:00:24.1]} 54. Rh6
{[%clk 0:00:44.6]} 54... Rd4+ {[%clk 0:00:23.8]} 55. Ke3 {[%clk 0:00:44]} 55...
f4+ {[%clk 0:00:23.6]} 56. Kf3 {[%clk 0:00:44.9]} 56... Rd3+ {[%clk 0:00:23.6]}
57. Ke2 {[%clk 0:00:45]} 57... Bf5 {[%clk 0:00:23.6]} 58. Kf2 {[%clk 0:00:45.9]}
58... Rd2+ {[%clk 0:00:23.3]} 59. Kf3 {[%clk 0:00:45.3]} 59... Be4+ {[%clk
0:00:23.5]} 60. Kg4 {[%clk 0:00:44.9]} 60... Rg2+ {[%clk 0:00:24.4]} 61. Kh3
{[%clk 0:00:44.6]} 61... f3 {[%clk 0:00:24.6]} 62. Rh8 {[%clk 0:00:38]} 62...
Kd4 {[%clk 0:00:24.5]} 63. Rf8 {[%clk 0:00:38.1]} 63... Ke3 {[%clk 0:00:24.1]}
64. Rb8 {[%clk 0:00:37.5]} 64... Rg7 {[%clk 0:00:20.2]} 65. Rf8 {[%clk
0:00:34.9]} 65... f2 {[%clk 0:00:18.4]} 66. Kh2 {[%clk 0:00:33.6]} 66... Rg1
{[%clk 0:00:14.4]} 67. Re8 {[%clk 0:00:24.8]} 67... Ra1 {[%clk 0:00:09.1]} 68.
Rb8 {[%clk 0:00:03]} 68... Rh1+ {[%clk 0:00:07]} 69. Kg3 {[%clk 0:00:01.6]}
69... Rg1+ {[%clk 0:00:07.9]} 70. Kh2 {[%clk 0:00:01.1]} 70... Rg2+ {[%clk
0:00:08.1]} 0-1

[Event "*** Titled Tuesday Blitz"]
[Site "Chess.com"]
[Date "2020.05.26"]
[Round "2"]
[White "SaraciNderim"]
[Black "almaguerjm"]
[Result "0-1"]
[WhiteElo "2781"]
[BlackElo "2329"]
[TimeControl "180+1"]
[EndTime "10:19:26 PDT"]
[Termination "almaguerjm won on time"]

1. b3 {[%clk 0:03:00.9]} 1... d5 {[%clk 0:02:48.7]} 2. Bb2 {[%clk 0:02:59.7]}
2... Nf6 {[%clk 0:02:48.5]} 3. e3 {[%clk 0:02:59.8]} 3... c5 {[%clk 0:02:45.2]}
4. Nf3 {[%clk 0:02:59.9]} 4... Nc6 {[%clk 0:02:45.5]} 5. d4 {[%clk 0:02:59.9]}
5... Bf5 {[%clk 0:02:45.6]} 6. Be2 {[%clk 0:02:58.6]} 6... e6 {[%clk 0:02:45.5]}
7. O-O {[%clk 0:02:58.6]} 7... Qb6 {[%clk 0:02:45.4]} 8. a3 {[%clk 0:02:53.7]}
8... Bd6 {[%clk 0:02:43.9]} 9. dxc5 {[%clk 0:02:53.2]} 9... Bxc5 {[%clk
0:02:44.4]} 10. b4 {[%clk 0:02:52.6]} 10... Be7 {[%clk 0:02:44.3]} 11. Nbd2
{[%clk 0:02:52.3]} 11... Rd8 {[%clk 0:02:41]} 12. c4 {[%clk 0:02:51.5]} 12...
dxc4 {[%clk 0:02:40]} 13. Qc1 {[%clk 0:02:50.2]} 13... Bd3 {[%clk 0:02:38.4]}
14. Nxc4 {[%clk 0:02:49.4]} 14... Bxc4 {[%clk 0:02:36.1]} 15. Qxc4 {[%clk
0:02:47.8]} 15... O-O {[%clk 0:02:35.9]} 16. Rad1 {[%clk 0:02:43]} 16... Rc8
{[%clk 0:02:29.6]} 17. Qb3 {[%clk 0:02:18.7]} 17... Rfd8 {[%clk 0:02:14.3]} 18.
h3 {[%clk 0:02:00.5]} 18... Rxd1 {[%clk 0:01:45.3]} 19. Rxd1 {[%clk 0:02:01.4]}
19... Rd8 {[%clk 0:01:45.5]} 20. Nd4 {[%clk 0:01:53.5]} 20... a6 {[%clk
0:00:54.4]} 21. Nxc6 {[%clk 0:01:39.4]} 21... Rxd1+ {[%clk 0:00:51.8]} 22. Qxd1
{[%clk 0:01:40.3]} 22... Qxc6 {[%clk 0:00:51.9]} 23. Bf3 {[%clk 0:01:39.5]}
23... Qc8 {[%clk 0:00:51.6]} 24. Qd4 {[%clk 0:01:33]} 24... Ne8 {[%clk
0:00:19.2]} 25. Qb6 {[%clk 0:00:52.6]} 25... Nd6 {[%clk 0:00:15.9]} 26. Be5
{[%clk 0:00:37.1]} 26... Nc4 {[%clk 0:00:15.5]} 27. Qd4 {[%clk 0:00:26]} 27...
Nxa3 {[%clk 0:00:16]} 28. Bxg7 {[%clk 0:00:20.1]} 28... Nb5 {[%clk 0:00:15.3]}
29. Qb2 {[%clk 0:00:16.1]} 29... Bf8 {[%clk 0:00:10]} 30. Bxf8 {[%clk
0:00:14.5]} 30... Qxf8 {[%clk 0:00:09.6]} 31. Bxb7 {[%clk 0:00:14]} 31... Qd6
{[%clk 0:00:09.9]} 32. Bf3 {[%clk 0:00:13.3]} 32... Nc7 {[%clk 0:00:08.7]} 33.
Qc3 {[%clk 0:00:10.9]} 33... f6 {[%clk 0:00:08.5]} 34. Be2 {[%clk 0:00:09.2]}
34... Kf7 {[%clk 0:00:08.7]} 35. g3 {[%clk 0:00:08.7]} 35... Kg7 {[%clk
0:00:09.1]} 36. Qc4 {[%clk 0:00:08]} 36... Nd5 {[%clk 0:00:09.2]} 37. b5 {[%clk
0:00:06.5]} 37... axb5 {[%clk 0:00:07.9]} 38. Qxb5 {[%clk 0:00:07.4]} 38... Nc3
{[%clk 0:00:07.8]} 39. Qb7+ {[%clk 0:00:07.3]} 39... Kh6 {[%clk 0:00:07.2]} 40.
Bf3 {[%clk 0:00:08.2]} 40... Nd5 {[%clk 0:00:06.7]} 41. Be4 {[%clk 0:00:05.9]}
41... f5 {[%clk 0:00:06.9]} 42. Bxd5 {[%clk 0:00:05.1]} 42... exd5 {[%clk
0:00:07.8]} 43. Qf7 {[%clk 0:00:03.9]} 43... Qe5 {[%clk 0:00:05]} 44. Qf8+
{[%clk 0:00:02.8]} 44... Kg6 {[%clk 0:00:05]} 45. Qb4 {[%clk 0:00:03.7]} 45...
Kf6 {[%clk 0:00:04.8]} 46. Qd4 {[%clk 0:00:03.4]} 46... Ke6 {[%clk 0:00:04.7]}
47. Qxe5+ {[%clk 0:00:03.3]} 47... Kxe5 {[%clk 0:00:05]} 48. Kf1 {[%clk
0:00:04.2]} 48... Ke4 {[%clk 0:00:05.6]} 49. Ke2 {[%clk 0:00:03.7]} 49... d4
{[%clk 0:00:04.7]} 50. f3+ {[%clk 0:00:02.7]} 50... Kd5 {[%clk 0:00:04.9]} 51.
Kd3 {[%clk 0:00:02.2]} 51... dxe3 {[%clk 0:00:05.2]} 52. Kxe3 {[%clk 0:00:03.1]}
52... Ke5 {[%clk 0:00:06.1]} 53. f4+ {[%clk 0:00:02.9]} 53... Kd5 {[%clk
0:00:06]} 54. Kd3 {[%clk 0:00:03.8]} 54... Kc5 {[%clk 0:00:05.8]} 55. Ke3 {[%clk
0:00:03.2]} 55... Kd5 {[%clk 0:00:06]} 56. Kf3 {[%clk 0:00:04.1]} 56... Kd4
{[%clk 0:00:06.1]} 57. g4 {[%clk 0:00:02.7]} 57... fxg4+ {[%clk 0:00:05.9]} 58.
hxg4 {[%clk 0:00:03.6]} 58... Kd5 {[%clk 0:00:06.2]} 59. Kg3 {[%clk 0:00:03.3]}
59... Ke6 {[%clk 0:00:07.1]} 60. Kh4 {[%clk 0:00:01.5]} 60... Kf6 {[%clk
0:00:08]} 61. f5 {[%clk 0:00:01.6]} 61... Kg7 {[%clk 0:00:07.5]} 62. Kh5 {[%clk
0:00:02]} 62... Kf7 {[%clk 0:00:08.1]} 63. Kg5 {[%clk 0:00:01.4]} 63... Kg7
{[%clk 0:00:08.4]} 64. Kf4 {[%clk 0:00:00.5]} 64... Kf6 {[%clk 0:00:05.4]} 0-1